bitfinex/quotes_BTCUSD_20241103
["timestamp","ask_amount","ask_price","bid_price","bid_amount"]
[1730652319601,0.000818,68266.0,68265.0,0.61545415]
[1730652319849,0.000818,68266.0,68265.0,0.74095415]
[1730652320343,0.000855,68268.0,68267.0,0.270483]
[1730652320608,0.000855,68268.0,68267.0,0.69127897]
[1730652320859,0.000855,68268.0,68267.0,0.68835015]
[1730652321376,0.000855,68268.0,68267.0,1.51917961]
[1730652321627,1e-06,68268.0,68267.0,1.39545731]
[1730652321870,0.000818,68283.0,68267.0,1.39545731]
[1730652321871,0.000818,68283.0,68282.0,0.268451]
[1730652322108,0.000818,68283.0,68282.0,0.73162369]
[1730652322368,0.000818,68283.0,68282.0,0.73580246]
[1730652322911,0.000818,68283.0,68282.0,0.70151316]
[1730652324048,0.002818,68283.0,68282.0,0.72851316]
[1730652324313,0.002818,68283.0,68282.0,0.72844107]
[1730652324563,0.002818,68283.0,68282.0,0.72133391]
[1730652324787,0.002818,68283.0,68282.0,1.4284272]
[1730652325269,0.002818,68283.0,68282.0,1.41801072]
[1730652325516,0.002818,68283.0,68282.0,1.30914321]
[1730652325756,0.002818,68283.0,68282.0,1.37444537]
[1730652326231,0.001818,68283.0,68282.0,0.66144537]
[1730652326492,0.000818,68283.0,68282.0,0.42133449]
[1730652326736,0.001818,68283.0,68282.0,0.44933449]
[1730652326957,0.001818,68283.0,68282.0,0.43533449]
[1730652327199,0.000818,68283.0,68282.0,0.43533449]
[1730652327438,0.000818,68283.0,68282.0,0.46484926]
[1730652327678,0.000818,68283.0,68282.0,0.54061164]
[1730652327891,0.000818,68283.0,68282.0,0.55661164]
[1730652328186,0.001818,68283.0,68282.0,0.55661164]
[1730652328682,0.001818,68283.0,68282.0,0.60011125]
[1730652329431,0.000818,68283.0,68282.0,0.54061164]
[1730652329659,0.001818,68283.0,68282.0,0.55461164]
[1730652329881,0.002818,68283.0,68282.0,0.55461164]
[1730652330099,0.003818,68283.0,68282.0,1.26861164]
[1730652330355,0.22003975,68303.0,68294.0,0.158425]
[1730652331529,0.000817,68305.0,68294.0,0.158425]
[1730652331761,0.000817,68305.0,68294.0,0.16135316]
[1730652332236,0.000817,68305.0,68294.0,0.158425]
[1730652332463,0.0053965,68305.0,68294.0,0.158425]
[1730652332709,0.000817,68305.0,68294.0,0.158425]
[1730652332937,0.1552997,68302.0,68294.0,0.159425]
[1730652333160,0.12406,68295.0,68294.0,0.160425]
[1730652333681,0.282055,68295.0,68294.0,0.005]
[1730652333923,0.283055,68295.0,68294.0,0.006]
[1730652334157,0.270483,68295.0,68294.0,0.006]
[1730652334399,0.12306,68295.0,68288.0,0.297875]
[1730652334646,0.12306,68295.0,68291.0,0.14643]
[1730652334890,0.12306,68295.0,68294.0,0.004]
[1730652334891,0.292483,68295.0,68294.0,0.004]
[1730652336044,0.146431,68292.0,68288.0,0.151438]
[1730652336324,0.12906,68295.0,68294.0,0.159425]
[1730652336558,0.13306,68295.0,68294.0,0.155425]
[1730652336812,0.13306,68295.0,68294.0,0.160425]
[1730652337046,0.13306,68295.0,68294.0,0.159425]
[1730652337047,0.12706,68295.0,68294.0,0.159425]
[1730652337277,0.01366,68295.0,68294.0,0.159425]
[1730652337509,0.01766,68295.0,68294.0,0.160425]
[1730652340023,0.01766,68295.0,68294.0,0.158425]
[1730652340474,0.01766,68295.0,68294.0,0.153425]
[1730652340899,0.01766,68295.0,68294.0,0.155425]
[1730652341341,0.01766,68295.0,68294.0,0.153425]
[1730652342249,0.02223989,68295.0,68294.0,0.153425]
[1730652342479,0.01766,68295.0,68294.0,0.153425]
[1730652342942,0.45885993,68295.0,68294.0,0.002]
[1730652343916,0.146457,68279.0,68278.0,0.22003975]
[1730652344135,0.44123393,68279.0,68278.0,0.22003975]
[1730652344359,0.146475,68271.0,68270.0,0.22223682]
[1730652344602,0.41825193,68271.0,68270.0,0.22223682]
[1730652344817,0.41825193,68271.0,68270.0,0.00219707]
[1730652345041,0.44125193,68271.0,68270.0,0.00219707]
[1730652345260,0.44125193,68271.0,68263.0,0.22003975]
[1730652345261,0.39749082,68271.0,68263.0,0.22003975]
[1730652345480,0.17337693,68270.0,68263.0,0.22003975]
[1730652345711,0.14649,68264.0,68263.0,0.22003975]
[1730652345940,0.29228704,68264.0,68263.0,0.22003975]
[1730652346203,0.00457989,68264.0,68263.0,0.007]
[1730652346469,0.00458201,68270.0,68263.0,0.151492]
[1730652346692,0.29228704,68264.0,68263.0,0.005]
[1730652346904,0.29686905,68264.0,68263.0,0.005]
[1730652347343,0.15037905,68264.0,68263.0,0.005]
[1730652348420,0.15537905,68264.0,68263.0,0.005]
[1730652348896,0.30686905,68264.0,68263.0,0.001]
[1730652349117,0.32986905,68264.0,68263.0,0.001]
[1730652349337,0.41914955,68264.0,68263.0,0.001]
[1730652349563,0.49484955,68264.0,68263.0,0.001]
[1730652350032,0.54064955,68264.0,68263.0,0.001]
[1730652351540,0.45136954,68264.0,68263.0,0.001]
[1730652352440,0.44636954,68264.0,68263.0,0.001]
[1730652352671,0.169492,68263.0,68262.0,0.001636]
[1730652352886,0.31528904,68263.0,68262.0,0.001636]
[1730652353097,0.31987197,68263.0,68262.0,0.001636]
[1730652353540,0.40952904,68263.0,68262.0,0.001636]
[1730652355314,0.42352904,68263.0,68262.0,0.001636]
[1730652355526,0.43752904,68263.0,68262.0,0.001636]
[1730652356661,0.43752894,68263.0,68262.0,0.001636]
[1730652360036,0.42352894,68263.0,68262.0,0.001636]
[1730652360469,0.43752894,68263.0,68262.0,0.001636]
[1730652361353,1.65883823,68263.0,68262.0,0.001636]
[1730652361563,1.64483823,68263.0,68262.0,0.001636]
[1730652361998,1.64483823,68263.0,68262.0,0.002636]
[1730652362226,1.65883823,68263.0,68262.0,0.002636]
[1730652363113,1.6542554,68263.0,68262.0,0.002636]
[1730652363344,1.65883864,68263.0,68262.0,0.002636]
[1730652364235,1.56918157,68263.0,68262.0,0.002636]
[1730652364715,0.46937228,68263.0,68262.0,0.002636]
[1730652367012,0.46937238,68263.0,68262.0,0.002636]
[1730652367450,0.46937237,68263.0,68262.0,0.002636]
[1730652370572,1.56918166,68263.0,68262.0,0.002636]
[1730652370804,1.7150074,68263.0,68262.0,0.002636]
[1730652371525,1.8150074,68263.0,68262.0,0.002636]
[1730652371787,0.123,68261.0,68260.0,0.001636]
[1730652372035,0.54527637,68261.0,68260.0,0.001636]
[1730652372265,0.69110211,68261.0,68260.0,0.001636]
[1730652372498,1.7909114,68261.0,68260.0,1e-06]
[1730652372710,1.83637128,68261.0,68260.0,1e-06]
[1730652372933,0.146522,68249.0,68231.0,0.005]
[1730652373164,0.16956,68231.0,68230.0,0.22003975]
[1730652373380,0.19109933,68231.0,68230.0,0.22003975]
[1730652373829,0.169567,68228.0,68227.0,0.006636]
[1730652374041,0.17415033,68228.0,68227.0,0.006636]
[1730652374294,0.31994737,68228.0,68227.0,0.006636]
[1730652374509,0.31994895,68228.0,68227.0,0.006636]
[1730652374949,0.41226385,68228.0,68227.0,0.001636]
[1730652376051,0.49116385,68228.0,68227.0,0.001636]
[1730652377166,0.41226385,68228.0,68227.0,0.001636]
[1730652378082,0.41226385,68228.0,68227.0,0.006636]
[1730652378083,0.17338195,68228.0,68227.0,0.006636]
[1730652378307,0.15038195,68228.0,68227.0,0.086236]
[1730652378535,0.00458491,68228.0,68227.0,0.239805]
[1730652379189,0.00758491,68228.0,68227.0,0.239805]
[1730652379417,0.00558491,68228.0,68227.0,0.239805]
[1730652380500,0.00558491,68228.0,68227.0,0.24273612]
[1730652380939,0.001,68228.0,68227.0,0.24273612]
[1730652381159,0.001,68228.0,68227.0,0.49760204]
[1730652381897,0.001,68228.0,68227.0,0.49560204]
[1730652382359,0.00458359,68241.0,68240.0,0.156541]
[1730652382800,0.00458359,68241.0,68240.0,0.158541]
[1730652384090,0.00558359,68241.0,68240.0,0.158541]
[1730652384303,0.00558314,68241.0,68240.0,0.158541]
[1730652384777,0.00658314,68241.0,68240.0,0.251541]
[1730652385017,0.02089435,68241.0,68240.0,0.251541]
[1730652385260,0.02089435,68241.0,68240.0,0.005]
[1730652385480,0.00658314,68241.0,68240.0,0.151541]
[1730652385943,0.00558314,68241.0,68240.0,0.151541]
[1730652386165,0.00458314,68241.0,68240.0,0.153541]
[1730652386410,0.00558314,68241.0,68240.0,0.153541]
[1730652386916,0.00558314,68241.0,68240.0,0.16147176]
[1730652387165,0.00558314,68241.0,68240.0,0.24107176]
[1730652387399,0.22003975,68251.0,68250.0,0.15152]
[1730652387640,0.37041993,68251.0,68250.0,0.15152]
[1730652387909,0.15038018,68251.0,68250.0,0.15152]
[1730652388795,0.14979704,68251.0,68250.0,0.15152]
[1730652389760,0.15379704,68251.0,68250.0,0.15152]
[1730652390255,0.004,68251.0,68250.0,0.37655975]
[1730652390503,0.004,68251.0,68250.0,0.15852]
[1730652390504,0.008583,68251.0,68250.0,0.15852]
[1730652390778,0.015583,68251.0,68250.0,0.16145007]
[1730652391239,0.015583,68251.0,68250.0,0.15852]
[1730652391240,0.007,68251.0,68250.0,0.15852]
[1730652391471,0.008,68251.0,68250.0,0.15852]
[1730652391721,0.008,68251.0,68250.0,0.16145007]
[1730652391943,0.008,68251.0,68250.0,0.15852]
[1730652392386,0.008,68251.0,68250.0,0.15652]
[1730652392387,0.001,68251.0,68250.0,0.15652]
[1730652392602,0.0167509,68251.0,68250.0,0.15652]
[1730652392821,0.15237977,68251.0,68250.0,0.005]
[1730652393674,0.15137977,68251.0,68250.0,0.005]
[1730652393885,0.15037977,68251.0,68250.0,0.15152]
[1730652394112,0.15237977,68251.0,68250.0,0.15152]
[1730652394340,0.14990977,68251.0,68250.0,0.15152]
[1730652394785,0.15290977,68251.0,68250.0,0.005]
[1730652395017,0.19750275,68251.0,68250.0,0.005]
[1730652395234,0.19292002,68251.0,68250.0,0.005]
[1730652395453,0.19292002,68251.0,68244.0,0.005]
[1730652395454,0.023,68250.0,68244.0,0.005]
[1730652395692,0.14653,68245.0,68244.0,0.005]
[1730652395912,0.29691057,68245.0,68244.0,0.005]
[1730652396125,0.15038057,68245.0,68244.0,0.005]
[1730652398922,0.14579704,68245.0,68244.0,0.005]
[1730652399130,0.21121825,68245.0,68244.0,0.005]
[1730652399583,0.21203625,68245.0,68244.0,0.005]
[1730652400943,0.15119855,68245.0,68244.0,0.005]
[1730652402500,0.14661504,68245.0,68244.0,0.007]
[1730652402721,0.15119868,68245.0,68244.0,0.007]
[1730652402943,0.15119868,68245.0,68244.0,0.005]
[1730652403155,0.14761504,68245.0,68244.0,0.151533]
[1730652403391,0.14861504,68245.0,68244.0,0.151533]
[1730652403615,0.14661504,68245.0,68244.0,0.151533]
[1730652403901,0.15061504,68245.0,68244.0,0.005]
[1730652404145,0.33315914,68245.0,68244.0,0.005]
[1730652404379,0.30114504,68245.0,68244.0,0.005]
[1730652404605,0.30114704,68245.0,68244.0,0.005]
[1730652405314,0.293066,68244.0,68240.0,0.005]
[1730652405556,0.21987004,68243.0,68240.0,0.005]
[1730652405797,0.14579704,68243.0,68240.0,0.005]
[1730652406030,0.146538,68242.0,68240.0,0.005]
[1730652406315,0.14579704,68241.0,68238.0,0.151544]
[1730652406556,0.14579704,68241.0,68240.0,0.005]
[1730652407032,0.14579704,68241.0,68239.0,0.146542]
[1730652407290,0.14579704,68241.0,68240.0,0.005]
[1730652407752,0.14579704,68241.0,68240.0,0.151541]
[1730652408198,0.14979704,68241.0,68240.0,0.151541]
[1730652409732,0.15379704,68241.0,68240.0,0.151541]
[1730652410201,0.008,68241.0,68240.0,0.151541]
[1730652410410,0.008,68241.0,68240.0,0.156541]
[1730652411056,0.004,68241.0,68240.0,0.156541]
[1730652411513,0.004,68241.0,68240.0,0.158177]
[1730652412431,0.000818,68245.0,68244.0,0.151533]
[1730652412652,0.000818,68245.0,68244.0,0.153533]
[1730652415092,0.000818,68245.0,68244.0,0.151533]
[1730652416887,0.000818,68245.0,68244.0,0.153533]
[1730652417538,0.000818,68245.0,68244.0,0.16146354]
[1730652417746,0.000818,68245.0,68244.0,0.158533]
[1730652420385,0.00540108,68245.0,68244.0,0.158533]
[1730652421077,0.00640108,68245.0,68244.0,0.158533]
[1730652422163,0.22003975,68255.0,68250.0,0.151518]
[1730652422164,0.32376883,68255.0,68250.0,0.151518]
[1730652422388,0.14579704,68254.0,68250.0,0.151518]
[1730652422848,0.146515,68253.0,68250.0,0.005]
[1730652423079,0.146517,68251.0,68250.0,0.005]
[1730652423312,0.146535,68243.0,68242.0,0.005]
[1730652423546,0.146539,68241.0,68238.0,0.005]
[1730652423766,0.146539,68241.0,68235.0,0.005]
[1730652423767,0.29233604,68241.0,68235.0,0.005]
[1730652423988,0.29233604,68241.0,68236.0,0.005]
[1730652424452,0.29233604,68241.0,68237.0,0.005]
[1730652424669,0.14579704,68241.0,68240.0,0.006636]
[1730652425087,0.14579704,68241.0,68240.0,0.008636]
[1730652425501,0.14579704,68241.0,68240.0,0.155177]
[1730652425723,0.14579704,68241.0,68240.0,0.008636]
[1730652426372,0.004,68241.0,68240.0,0.37521675]
[1730652426602,0.22003975,68265.0,68240.0,0.37521675]
[1730652426603,0.24303975,68250.0,68240.0,0.011636]
[1730652426821,0.14579704,68249.0,68245.0,0.005]
[1730652427706,0.146528,68247.0,68245.0,0.005]
[1730652427926,0.14579704,68246.0,68245.0,0.005]
[1730652428580,0.328043,68250.0,68245.0,0.005]
[1730652428788,0.14579704,68249.0,68247.0,0.002]
[1730652429001,0.14579704,68249.0,68246.0,0.146527]
[1730652429426,0.012,68250.0,68248.0,0.005]
[1730652429657,0.000818,68251.0,68250.0,0.002]
[1730652429864,0.013,68249.0,68248.0,0.151524]
[1730652430074,0.01,68249.0,68248.0,0.151524]
[1730652430299,0.021,68249.0,68248.0,0.151524]
[1730652430713,0.01,68249.0,68248.0,0.153524]
[1730652430944,0.01,68249.0,68248.0,0.151524]
[1730652431157,0.14761504,68251.0,68250.0,0.14652]
[1730652431368,0.14661504,68251.0,68250.0,0.14652]
[1730652431594,0.000818,68251.0,68250.0,0.14652]
[1730652432016,0.000818,68251.0,68250.0,0.14852]
[1730652433615,0.001818,68251.0,68250.0,0.14652]
[1730652434058,0.001818,68251.0,68249.0,0.005]
[1730652434059,0.00640103,68251.0,68249.0,0.005]
[1730652434297,0.00458303,68250.0,68249.0,0.151521]
[1730652434724,0.002818,68251.0,68249.0,0.151521]
[1730652434937,0.00458303,68250.0,68249.0,0.151521]
[1730652435166,0.00458299,68250.0,68249.0,0.151521]
[1730652435379,0.00458299,68250.0,68248.0,0.005]
[1730652435599,0.00458299,68249.0,68248.0,0.005]
[1730652435827,0.00458299,68249.0,68248.0,0.01]
[1730652436036,0.00458299,68249.0,68248.0,0.156524]
[1730652436927,0.000818,68251.0,68248.0,0.01]
[1730652437138,0.000818,68251.0,68249.0,0.151522]
[1730652437139,0.00458303,68250.0,68249.0,0.151522]
[1730652437362,0.00458303,68250.0,68249.0,0.158522]
[1730652441953,0.00458297,68250.0,68249.0,0.158522]
[1730652442183,0.00458297,68250.0,68249.0,0.156522]
[1730652442416,0.00458297,68250.0,68244.0,0.001636]
[1730652442417,0.22688001,68250.0,68244.0,0.001636]
[1730652442666,0.16953,68245.0,68244.0,0.001636]
[1730652442857,0.36362704,68245.0,68244.0,0.001636]
[1730652443079,0.41396863,68245.0,68244.0,0.001636]
[1730652443298,0.36821001,68245.0,68244.0,0.001636]
[1730652443523,0.47592533,68245.0,68244.0,0.001636]
[1730652443744,0.64208018,68245.0,68244.0,0.001636]
[1730652443972,0.65608018,68245.0,68244.0,0.001636]
[1730652444414,0.56642533,68245.0,68244.0,0.001636]
[1730652444625,0.50445241,68245.0,68244.0,0.001636]
[1730652444842,0.45871001,68245.0,68244.0,0.001636]
[1730652445054,0.50445209,68245.0,68244.0,0.001636]
[1730652445270,0.45871001,68245.0,68244.0,0.001636]
[1730652445482,0.47271118,68245.0,68244.0,0.001636]
[1730652445930,0.70992454,68245.0,68244.0,0.001636]
[1730652446145,0.83553251,68245.0,68244.0,0.001636]
[1730652446387,0.84953274,68245.0,68244.0,0.001636]
[1730652447980,0.61853715,68245.0,68244.0,0.001636]
[1730652448621,0.62587183,68245.0,68244.0,0.001636]
[1730652449043,0.48004609,68245.0,68244.0,0.001636]
[1730652449723,0.44664272,68245.0,68244.0,0.001636]
[1730652455890,0.44664254,68245.0,68244.0,0.001636]
[1730652461503,0.43264254,68245.0,68244.0,0.001636]
[1730652461723,0.44664254,68245.0,68244.0,0.001636]
[1730652462207,0.43264254,68245.0,68244.0,0.001636]
[1730652462413,0.41864254,68245.0,68244.0,0.001636]
[1730652462623,0.44664254,68245.0,68244.0,0.001636]
[1730652463063,0.75799863,68245.0,68244.0,0.001636]
[1730652463283,2.0689562,68245.0,68244.0,0.001636]
[1730652463746,0.1,68244.0,68240.0,0.001636]
[1730652463956,0.54193604,68241.0,68240.0,0.001636]
[1730652464168,0.88491006,68241.0,68240.0,0.001636]
[1730652464405,0.9945061,68241.0,68240.0,0.001636]
[1730652464622,2.09431539,68241.0,68240.0,0.001636]
[1730652465066,1.98471935,68241.0,68240.0,0.001636]
[1730652465276,2.09429218,68241.0,68240.0,0.001636]
[1730652465704,2.10829218,68241.0,68240.0,0.001636]
[1730652465946,1.99871935,68241.0,68240.0,0.001636]
[1730652466166,1.98471935,68241.0,68240.0,0.001636]
[1730652466378,1.99871935,68241.0,68240.0,0.001636]
[1730652466591,1.98471935,68241.0,68240.0,0.001636]
[1730652466812,1.97280024,68241.0,68240.0,0.001636]
[1730652467022,1.99872303,68241.0,68240.0,0.001636]
[1730652467236,1.98472303,68241.0,68240.0,0.001636]
[1730652467689,1.99872303,68241.0,68240.0,0.001636]
[1730652468321,1.98472303,68241.0,68240.0,0.001636]
[1730652469216,2.01272303,68241.0,68240.0,0.001636]
[1730652469429,1.99872303,68241.0,68240.0,0.001636]
[1730652469837,2.01272303,68241.0,68240.0,0.001636]
[1730652470080,1.99872303,68241.0,68240.0,0.001636]
[1730652470324,2.10817352,68241.0,68240.0,0.001636]
[1730652470535,1.99872303,68241.0,68240.0,0.001636]
[1730652470753,1.98472303,68241.0,68240.0,0.001636]
[1730652470961,1.99872303,68241.0,68240.0,0.001636]
[1730652471167,2.01272303,68241.0,68240.0,0.001636]
[1730652471389,2.12430712,68241.0,68240.0,0.001636]
[1730652471598,2.11030712,68241.0,68240.0,0.001636]
[1730652471803,2.00087866,68241.0,68240.0,0.001636]
[1730652472012,1.84605292,68241.0,68240.0,0.001636]
[1730652472224,1.7043373,68241.0,68240.0,0.001636]
[1730652472437,1.74810051,68241.0,68240.0,0.001636]
[1730652472664,1.7043373,68241.0,68240.0,0.001636]
[1730652472899,1.6903373,68241.0,68240.0,0.001636]
[1730652473119,1.72188184,68241.0,68240.0,0.001636]
[1730652473328,1.74488184,68241.0,68240.0,0.001636]
[1730652473540,1.73088184,68241.0,68240.0,0.001636]
[1730652473776,1.74488184,68241.0,68240.0,0.001636]
[1730652474043,1.80264505,68241.0,68240.0,0.001636]
[1730652474731,1.75888184,68241.0,68240.0,0.001636]
[1730652475404,1.80263816,68241.0,68240.0,0.001636]
[1730652475628,1.75888184,68241.0,68240.0,0.001636]
[1730652475847,1.90089753,68241.0,68240.0,0.001636]
[1730652476072,2.01028875,68241.0,68240.0,0.001636]
[1730652476283,0.41535462,68228.0,68227.0,0.001636]
[1730652476540,0.57307445,68228.0,68227.0,0.001636]
[1730652477420,0.56573741,68228.0,68227.0,0.001636]
[1730652477632,0.57307461,68228.0,68227.0,0.001636]
[1730652478093,0.73274649,68228.0,68227.0,0.001636]
[1730652478313,0.87857223,68228.0,68227.0,0.001636]
[1730652479187,0.86457223,68228.0,68227.0,0.001636]
[1730652479409,0.87857223,68228.0,68227.0,0.001636]
[1730652480266,0.89257223,68228.0,68227.0,0.001636]
[1730652480480,0.87857223,68228.0,68227.0,0.001636]
[1730652480926,0.86457223,68228.0,68227.0,0.001636]
[1730652481145,0.87857223,68228.0,68227.0,0.001636]
[1730652481798,0.86457223,68228.0,68227.0,0.001636]
[1730652482006,0.87857223,68228.0,68227.0,0.001636]
[1730652482254,0.89257223,68228.0,68227.0,0.001636]
[1730652482681,0.87857223,68228.0,68227.0,0.001636]
[1730652483177,1.97838152,68228.0,68227.0,0.001636]
[1730652484021,1.56376816,68228.0,68227.0,0.001636]
[1730652484238,1.41809628,68228.0,68227.0,0.001636]
[1730652484680,1.41809628,68228.0,68227.0,0.003636]
[1730652484681,1.28552928,68228.0,68227.0,0.003636]
[1730652484894,1.43209628,68228.0,68227.0,0.001636]
[1730652485111,1.41809628,68228.0,68227.0,0.001636]
[1730652485319,1.40409628,68228.0,68227.0,0.001636]
[1730652485532,1.43209628,68228.0,68227.0,0.001636]
[1730652485973,1.57292202,68228.0,68227.0,0.001636]
[1730652486183,1.41809628,68228.0,68227.0,0.001636]
[1730652486397,1.43209628,68228.0,68227.0,0.001636]
[1730652486842,1.42017333,68228.0,68227.0,0.001636]
[1730652487055,1.41809467,68228.0,68227.0,0.001636]
[1730652487276,1.4320948,68228.0,68227.0,0.001636]
[1730652487486,1.4320948,68228.0,68227.0,0.003636]
[1730652487695,1.4180948,68228.0,68227.0,0.001636]
[1730652487901,1.4320948,68228.0,68227.0,0.001636]
[1730652488382,1.4180948,68228.0,68227.0,0.001636]
[1730652488600,1.2715278,68228.0,68227.0,0.001636]
[1730652488816,1.2715278,68228.0,68227.0,0.274905]
[1730652488817,0.03992147,68228.0,68227.0,0.274905]
[1730652489040,0.02592147,68228.0,68227.0,0.126336]
[1730652489239,0.02592147,68228.0,68227.0,0.269905]
[1730652489449,0.03992147,68228.0,68227.0,0.269905]
[1730652489671,0.03992147,68228.0,68227.0,0.276905]
[1730652490105,0.03258518,68228.0,68227.0,0.281905]
[1730652490317,0.028,68228.0,68227.0,0.281905]
[1730652490528,0.03258448,68228.0,68227.0,0.281905]
[1730652490722,0.03258448,68228.0,68227.0,0.40129262]
[1730652490972,0.03258448,68228.0,68227.0,0.281905]
[1730652491383,0.028,68228.0,68227.0,0.281905]
[1730652491562,0.014,68228.0,68227.0,0.281905]
[1730652491796,0.015,68228.0,68227.0,0.283905]
[1730652492638,0.001,68228.0,68227.0,0.283905]
[1730652492849,0.00558406,68228.0,68227.0,0.283905]
[1730652493062,0.002,68228.0,68227.0,0.286905]
[1730652493273,0.002,68228.0,68227.0,0.41129262]
[1730652493477,0.22003975,68238.0,68237.0,0.278248]
[1730652493890,0.00458384,68238.0,68237.0,0.57134]
[1730652494519,0.00458384,68238.0,68237.0,0.57634]
[1730652494934,0.00858384,68238.0,68237.0,0.57634]
[1730652495348,0.004,68238.0,68237.0,0.57634]
[1730652495561,0.008,68238.0,68237.0,0.57634]
[1730652496817,0.004,68238.0,68237.0,0.57634]
[1730652497026,0.000818,68240.0,68239.0,0.153543]
[1730652497471,0.000818,68240.0,68238.0,0.005]
[1730652497682,0.15119876,68240.0,68238.0,0.005]
[1730652497888,0.15112772,68239.0,68238.0,0.005]
[1730652498781,0.00458372,68239.0,68238.0,0.005]
[1730652498988,0.14991142,68239.0,68237.0,0.0914]
[1730652499203,0.146543,68239.0,68237.0,0.0874]
[1730652499418,0.14579704,68238.0,68232.0,0.002]
[1730652499624,0.146551,68236.0,68233.0,0.002]
[1730652499849,0.14579704,68235.0,68233.0,0.002]
[1730652500057,0.29234904,68235.0,68234.0,0.002]
[1730652500267,0.146555,68234.0,68232.0,0.002]
[1730652500472,0.14579704,68235.0,68232.0,0.002]
[1730652501140,0.14579704,68235.0,68234.0,0.002]
[1730652501313,0.14579704,68235.0,68232.0,0.002]
[1730652501553,0.146556,68233.0,68232.0,0.002]
[1730652501777,0.002,68234.0,68231.0,0.01]
[1730652502010,0.148555,68234.0,68231.0,0.01]
[1730652502648,0.002,68234.0,68232.0,0.002]
[1730652502852,0.14579704,68235.0,68232.0,0.002]
[1730652503058,0.001,68234.0,68232.0,0.002]
[1730652503489,0.146556,68233.0,68232.0,0.002]
[1730652503707,0.001,68234.0,68232.0,0.002]
[1730652503708,0.147555,68234.0,68232.0,0.002]
[1730652503911,0.146555,68234.0,68232.0,0.002]
[1730652504123,0.148555,68234.0,68232.0,0.002]
[1730652504540,0.146555,68234.0,68232.0,0.002]
[1730652504991,0.002,68233.0,68232.0,0.002]
[1730652505233,0.146565,68230.0,68227.0,0.011636]
[1730652505474,0.29236204,68230.0,68227.0,0.011636]
[1730652505706,0.002,68233.0,68229.0,0.007]
[1730652505926,0.004,68233.0,68232.0,0.206058]
[1730652506215,0.004,68233.0,68232.0,0.40006675]
[1730652506456,0.004,68233.0,68232.0,0.3971362]
[1730652506707,0.004,68233.0,68232.0,0.53265504]
[1730652506708,0.002,68233.0,68232.0,0.53265504]
[1730652507193,0.000818,68240.0,68239.0,0.281843]
[1730652507455,0.06573058,68253.0,68243.0,0.168535]
[1730652507692,0.22003975,68246.0,68244.0,0.393833]
[1730652507926,0.22003975,68246.0,68244.0,0.53963004]
[1730652508190,0.000818,68255.0,68244.0,0.53963004]
[1730652508426,0.000818,68255.0,68244.0,0.391833]
[1730652508661,0.000818,68255.0,68244.0,0.53963004]
[1730652508922,0.22085775,68255.0,68244.0,0.53963004]
[1730652509153,0.001818,68245.0,68244.0,0.54263004]
[1730652509385,0.002818,68245.0,68244.0,0.54663004]
[1730652509652,0.001818,68245.0,68244.0,0.54263004]
[1730652509880,0.002818,68245.0,68244.0,0.54663004]
[1730652510348,0.001818,68245.0,68244.0,0.54263004]
[1730652510597,0.001818,68245.0,68244.0,0.53813004]
[1730652510836,0.002818,68245.0,68244.0,0.54613004]
[1730652511349,0.001818,68245.0,68244.0,0.54313004]
[1730652511878,0.00139295,68245.0,68244.0,0.54213004]
[1730652512371,0.00239295,68245.0,68244.0,0.54613004]
[1730652513308,0.00239295,68245.0,68244.0,0.395333]
[1730652513845,0.00239295,68245.0,68244.0,0.390333]
[1730652514335,0.00139295,68245.0,68244.0,0.387333]
[1730652514564,0.00139295,68245.0,68244.0,0.337833]
[1730652515053,0.00139295,68245.0,68244.0,0.336833]
[1730652515515,0.00239295,68245.0,68244.0,0.340833]
[1730652515773,0.00139295,68245.0,68244.0,0.336833]
[1730652516008,0.00239295,68245.0,68244.0,0.340833]
[1730652516500,0.00139295,68245.0,68244.0,0.337833]
[1730652516742,0.00139295,68245.0,68244.0,0.340833]
[1730652516743,0.00239295,68245.0,68244.0,0.340833]
[1730652519640,0.00139295,68245.0,68244.0,0.337833]
[1730652519883,0.00139295,68245.0,68244.0,0.333833]
[1730652519884,0.00039295,68245.0,68244.0,0.333833]
[1730652520085,0.00139295,68245.0,68244.0,0.340833]
[1730652520290,0.00239295,68245.0,68244.0,0.340833]
[1730652520506,0.00139295,68245.0,68244.0,0.342833]
[1730652520927,0.00239295,68245.0,68244.0,0.345833]
[1730652522045,0.00139295,68245.0,68244.0,0.341833]
[1730652522478,0.00039295,68245.0,68244.0,0.338833]
[1730652522707,0.00139295,68245.0,68244.0,0.342833]
[1730652522911,0.00239295,68245.0,68244.0,0.350833]
[1730652523328,0.00139295,68245.0,68244.0,0.346833]
[1730652524605,0.00239295,68245.0,68244.0,0.358833]
[1730652526967,0.00239295,68245.0,68244.0,0.55914428]
[1730652527178,0.00239295,68245.0,68244.0,0.56314428]
[1730652528430,0.00239295,68245.0,68244.0,0.55863004]
[1730652528631,0.00239295,68245.0,68244.0,0.56063004]
[1730652530060,0.00239295,68245.0,68244.0,0.71493004]
[1730652532854,0.00239295,68245.0,68244.0,0.71656604]
[1730652533770,0.00239295,68245.0,68244.0,0.71456604]
[1730652534181,0.00239295,68245.0,68244.0,0.94099442]
[1730652535276,0.00239295,68245.0,68244.0,0.984939]
[1730652536444,0.00239295,68245.0,68244.0,0.80879104]
[1730652536667,0.00239295,68245.0,68244.0,0.67238701]
[1730652536892,0.00239295,68245.0,68244.0,0.51126604]
[1730652537327,0.00239295,68245.0,68244.0,0.279669]
[1730652537538,0.00697536,68245.0,68244.0,0.179669]
[1730652537948,0.01430762,68245.0,68244.0,0.179669]
[1730652538386,0.00697536,68245.0,68244.0,0.179669]
[1730652539495,0.00697536,68245.0,68244.0,0.033136]
[1730652539696,0.01430784,68245.0,68244.0,0.033136]
[1730652540321,0.00239295,68245.0,68244.0,0.033136]
[1730652540548,0.00239295,68245.0,68244.0,0.167669]
[1730652540549,0.00872555,68245.0,68244.0,0.167669]